[Event "Int SVK-ch Open 2020"]
[Site "Drienica"]
[Date "2020.08.13"]
[Round "7.3"]
[White "Ganzova, Veronika"]
[Black "Tomcik, Milan"]
[Result "0-1"]
[ECO "B00"]
[WhiteElo "1614"]
[BlackElo "1963"]
[Annotator "ChessBase"]
[PlyCount "102"]
[EventDate "2020.08.07"]
[EventType "swiss"]
[EventCountry "SVK"]
[SourceTitle "playchess.com"]
[Source "ChessBase"]
[SourceQuality "1"]
[TimeControl "40/5400+30:1800+30"]

1. e4 {[%emt 0:00:00]} d6 {[%emt 0:00:00]} 2. d4 {[%emt 0:00:05]} Nf6 {[%emt 0:00:00]} 3. Bd3 {[%emt 0:01:52]} g6 {[%emt 0:00:03]} 4. Nf3 {[%emt 0:00:47]} Bg7 {[%emt 0:00:05]} 5. O-O {[%emt 0:01:21]} O-O {[%emt 0:00:38]} 6. Bd2 {[%emt 0:03:45]} Nbd7 {[%emt 0:00:16]} 7. Na3 {[%emt 0:01:49]} c6 {[%emt 0:05:32]} 8. Qc1 {[%emt 0:02:50]} e5 {[%emt 0:01:36]} 9. c3 {[%emt 0:00:58]} Re8 {[%emt 0:00:29]} 10. Nc4 {[%emt 0:03:14]} Qc7 {[%emt 0:01:22]} 11. dxe5 {[%emt 0:02:51]} dxe5 {[%emt 0:05:46]} 12. Re1 {[%emt 0:02:31]} b5 {[%emt 0:03:40]} 13. Na3 {[%emt 0:01:29]} Nc5 {[%emt 0:06:02]} 14. Bc2 {[%emt 0:03:38]} Ba6 {[%emt 0:18:54]} 15. Bh6 {[%emt 0:03:31]} Rad8 {[%emt 0:02:56]} 16. Bxg7 {[%emt 0:00:31]} Kxg7 {[%emt 0:00:05]} 17. Qe3 {[%emt 0:00:28]} Ne6 {[%emt 0:00:36]} 18. h3 {[%emt 0:01:15]} c5 {[%emt 0:01:17]} 19. Rad1 {[%emt 0:02:49]} b4 {[%emt 0:02:53]} 20. Nb1 {[%emt 0:00:15]} Nf4 {[%emt 0:00:38]} 21. Ba4 {[%emt 0:02:42]} Rf8 {[%emt 0:03:10]} 22. Rxd8 {[%emt 0:04:51]} Rxd8 {[%emt 0:00:08]} 23. Rd1 {[%emt 0:00:19]} Rxd1+ {[%emt 0:13:11]} 24. Bxd1 {[%emt 0:00:07]} Nd7 {[%emt 0:00:29]} 25. Qd2 {[%emt 0:03:26]} Bd3 {[%emt 0:06:20]} 26. Bc2 {[%emt 0:01:54]} Bxc2 {[%emt 0:00:20]} 27. Qxc2 {[%emt 0:00:14]} Qd6 {[%emt 0:00:14]} 28. Kf1 {[%emt 0:08:32]} f6 {[%emt 0:03:17]} 29. Qd2 {[%emt 0:04:35]} Qd3+ {[%emt 0:01:04]} 30. Qxd3 {[%emt 0:02:25]} Nxd3 {[%emt 0:00:06]} 31. cxb4 {[%emt 0:03:00]} cxb4 {[%emt 0:00:43]} 32. Ke2 {[%emt 0:07:47]} Nxb2 {[%emt 0:00:26]} 33. Nfd2 {[%emt 0:00:40]} Nc5 {[%emt 0:02:21]} 34. f3 {[%emt 0:00:40]} Kf7 {[%emt 0:01:33]} 35. Nb3 {[%emt 0:00:39]} Ne6 {[%emt 0:00:42]} 36. N1d2 {[%emt 0:01:43]} Ke7 {[%emt 0:00:55]} 37. Na5 {[%emt 0:00:29]} Kd6 {[%emt 0:01:04]} 38. g3 {[%emt 0:01:40]} Nd4+ {[%emt 0:01:54]} 39. Ke3 {[%emt 0:00:43]} Nd1+ {[%emt 0:10:03]} 40. Kd3 {[%emt 0:01:15]} Nb2+ {[%emt 0:00:35]} 41. Ke3 {[%emt 0:30:26]} Kc5 {[%emt 0:34:32]} 42. Nab3+ {[%emt 0:02:33]} Nxb3 {[%emt 0:00:20]} 43. axb3 {[%emt 0:00:07]} Nd1+ {[%emt 0:00:15]} 44. Ke2 {[%emt 0:00:11]} Nc3+ {[%emt 0:00:22]} 45. Kd3 {[%emt 0:00:19]} Nb5 {[%emt 0:00:27]} 46. f4 {[%emt 0:01:50]} Nd4 {[%emt 0:00:38]} 47. h4 {[%emt 0:04:59]} exf4 {[%emt 0:02:52]} 48. gxf4 {[%emt 0:00:17]} a6 {[%emt 0:02:18]} 49. Ke3 {[%emt 0:00:45]} Nc2+ {[%emt 0:00:40]} 50. Kd3 {[%emt 0:00:27]} Ne1+ {[%emt 0:00:00]} 51. Ke2 {[%emt 0:00:00]} Ng2 {[%emt 0:00:00]} 0-1

[Event "Int SVK-ch Open 2020"]
[Site "Drienica"]
[Date "2020.08.15"]
[Round "7.4"]
[White "Kolesar, Milan"]
[Black "Hros, Roman"]
[Result "0-1"]
[ECO "A33"]
[WhiteElo "2186"]
[BlackElo "2199"]
[Annotator "ChessBase"]
[PlyCount "92"]
[EventDate "2020.08.07"]
[EventType "swiss"]
[EventCountry "SVK"]
[TimeControl "40/5400+30:1800+30"]

1. Nf3 {[%emt 0:00:00]} c5 {[%emt 0:00:03]} 2. c4 {[%emt 0:00:00]} Nc6 {[%emt 0:00:01]} 3. d4 {[%emt 0:00:00]} cxd4 {[%emt 0:00:02]} 4. Nxd4 {[%emt 0:00:00]} Nf6 {[%emt 0:00:07]} 5. Nc3 {[%emt 0:00:10]} e6 {[%emt 0:00:21]} 6. a3 {[%emt 0:00:07]} d5 {[%emt 0:01:33]} 7. cxd5 {[%emt 0:02:14]} exd5 {[%emt 0:01:36]} 8. Bf4 {[%emt 0:06:55]} a6 {[%emt 0:11:22]} 9. e3 {[%emt 0:03:23]} Bc5 {[%emt 0:08:09]} 10. Nxc6 {[%emt 0:04:34]} bxc6 {[%emt 0:00:13]} 11. Be2 {[%emt 0:04:27]} O-O {[%emt 0:01:34]} 12. Rc1 {[%emt 0:02:32]} Be7 {[%emt 0:11:02]} 13. O-O {[%emt 0:00:59]} Qa5 {[%emt 0:09:11]} 14. Qa4 {[%emt 0:07:09]} Qxa4 {[%emt 0:13:35]} 15. Nxa4 {[%emt 0:00:26]} Ra7 {[%emt 0:00:34]} 16. Bb8 {[%emt 0:13:25]} Ra8 {[%emt 0:03:41]} 17. Be5 {[%emt 0:01:33]} Nd7 {[%emt 0:00:30]} 18. Bd4 {[%emt 0:01:07]} Bb7 {[%emt 0:00:07]} 19. Nc5 {[%emt 0:01:47]} Nxc5 {[%emt 0:02:05]} 20. Bxc5 {[%emt 0:00:07]} Rfe8 {[%emt 0:01:17]} 21. Bxe7 {[%emt 0:03:36]} Rxe7 {[%emt 0:00:30]} 22. Bf3 {[%emt 0:00:36]} f5 {[%emt 0:05:14]} 23. g3 {[%emt 0:00:51]} Kf7 {[%emt 0:01:49]} 24. Rc5 {[%emt 0:00:42]} a5 {[%emt 0:05:51]} 25. b4 {[%emt 0:13:23]} axb4 {[%emt 0:00:12]} 26. axb4 {[%emt 0:00:06]} Ke6 {[%emt 0:01:26]} 27. Rfc1 {[%emt 0:02:45]} Kd6 {[%emt 0:00:21]} 28. h4 {[%emt 0:08:55]} g6 {[%emt 0:00:48]} 29. R5c3 {[%emt 0:02:16]} Ra4 {[%emt 0:01:59]} 30. Rb1 {[%emt 0:03:14]} Ba6 {[%emt 0:00:33]} 31. Bg2 {[%emt 0:05:26]} Rb7 {[%emt 0:03:33]} 32. Rcb3 {[%emt 0:00:05]} Bc4 {[%emt 0:02:22]} 33. R3b2 {[%emt 0:00:02]} Kc7 {[%emt 0:00:57]} 34. Bf1 {[%emt 0:00:37]} Ra2 {[%emt 0:04:52]} 35. Bxc4 {[%emt 0:06:59]} Rxb2 {[%emt 0:00:02]} 36. Rxb2 {[%emt 0:00:11]} dxc4 {[%emt 0:00:05]} 37. Kf1 {[%emt 0:00:08]} Kb6 {[%emt 0:00:14]} 38. Ke2 {[%emt 0:02:12]} Kb5 {[%emt 0:07:29]} 39. Kd2 {[%emt 0:00:12]} Ra7 {[%emt 0:00:20]} 40. Kc3 {[%emt 0:03:42]} Ra3+ {[%emt 0:00:09]} 41. Kc2 {[%emt 0:30:22]} c3 {[%emt 0:05:33]} 42. Rb3 {[%emt 0:00:00]} Rxb3 {[%emt 0:00:09]} 43. Kxb3 {[%emt 0:00:00]} c2 {[%emt 0:00:02]} 44. Kxc2 {[%emt 0:00:00]} Kxb4 {[%emt 0:00:01]} 45. Kd3 {[%emt 0:00:00]} c5 {[%emt 0:00:06]} 46. f3 {[%emt 0:00:00]} Kb3 {[%emt 0:00:51]} 0-1

[Event "Int SVK-ch Open 2020"]
[Site "Drienica"]
[Date "2020.08.13"]
[Round "7.4"]
[White "Tomcikova, Zuzana"]
[Black "Dujava, Daniel"]
[Result "1/2-1/2"]
[ECO "B24"]
[WhiteElo "1776"]
[BlackElo "2111"]
[Annotator "ChessBase"]
[PlyCount "41"]
[EventDate "2020.08.07"]
[EventType "swiss"]
[EventCountry "SVK"]
[SourceTitle "playchess.com"]
[Source "ChessBase"]
[SourceQuality "1"]
[TimeControl "40/5400+30:1800+30"]

1. e4 {[%emt 0:00:00]} c5 {[%emt 0:00:00]} 2. Nc3 {[%emt 0:00:00]} Nc6 {[%emt 0:00:00]} 3. Bb5 {[%emt 0:00:02]} Nd4 {[%emt 0:00:24]} 4. Bc4 {[%emt 0:00:07]} g6 {[%emt 0:00:33]} 5. f4 {[%emt 0:00:58]} e6 {[%emt 0:01:27]} 6. Nf3 {[%emt 0:01:58]} Bg7 {[%emt 0:02:39]} 7. d3 {[%emt 0:00:31]} Ne7 {[%emt 0:01:27]} 8. O-O {[%emt 0:02:12]} d5 {[%emt 0:05:09]} 9. Bb5+ {[%emt 0:04:31]} Nxb5 {[%emt 0:03:49]} 10. Nxb5 {[%emt 0:00:08]} a6 {[%emt 0:06:13]} 11. Nc3 {[%emt 0:03:05]} dxe4 {[%emt 0:03:26]} 12. Nxe4 {[%emt 0:03:11]} O-O {[%emt 0:01:59]} 13. Kh1 {[%emt 0:05:41]} b6 {[%emt 0:00:28]} 14. a4 {[%emt 0:03:40]} Qc7 {[%emt 0:03:34]} 15. Qe2 {[%emt 0:12:04]} a5 {[%emt 0:10:44]} 16. Rb1 {[%emt 0:03:11]} Nd5 {[%emt 0:02:41]} 17. Ne5 {[%emt 0:04:41]} Nf6 {[%emt 0:15:06]} 18. Nxf6+ {[%emt 0:01:45]} Bxf6 {[%emt 0:00:41]} 19. b3 {[%emt 0:00:27]} Bb7 {[%emt 0:03:23]} 20. Bb2 {[%emt 0:00:40]} Bg7 {[%emt 0:06:18]} 21. Ng4 1/2-1/2

[Event "Int SVK-ch Open 2020"]
[Site "Drienica"]
[Date "2020.08.15"]
[Round "7.5"]
[White "Mrvova, Alena"]
[Black "Bochnicka, Vladimir"]
[Result "0-1"]
[ECO "B88"]
[WhiteElo "2188"]
[BlackElo "2123"]
[Annotator "ChessBase"]
[PlyCount "130"]
[EventDate "2020.08.07"]
[EventType "swiss"]
[EventCountry "SVK"]
[TimeControl "40/5400+30:1800+30"]

1. e4 {[%emt 0:00:00]} c5 {[%emt 0:00:00]} 2. Nf3 {[%emt 0:00:19]} Nc6 {[%emt 0:00:00]} 3. Nc3 {[%emt 0:00:13]} d6 {[%emt 0:00:30]} 4. Bc4 {[%emt 0:01:36]} Nf6 {[%emt 0:00:56]} 5. d4 {[%emt 0:01:20]} cxd4 {[%emt 0:00:37]} 6. Nxd4 {[%emt 0:00:06]} e6 {[%emt 0:03:04]} 7. Bb3 {[%emt 0:01:31]} a6 {[%emt 0:01:54]} 8. a4 {[%emt 0:00:42]} Be7 {[%emt 0:01:13]} 9. O-O {[%emt 0:00:39]} O-O {[%emt 0:00:09]} 10. Nde2 {[%emt 0:00:50]} b6 {[%emt 0:03:29]} 11. Ng3 {[%emt 0:01:57]} Bb7 {[%emt 0:01:18]} 12. Be3 {[%emt 0:02:19]} Qc7 {[%emt 0:04:29]} 13. Qe2 {[%emt 0:00:44]} Rfd8 {[%emt 0:00:56]} 14. Rad1 {[%emt 0:05:12]} Nb4 {[%emt 0:05:13]} 15. f3 {[%emt 0:01:53]} d5 {[%emt 0:04:31]} 16. Kh1 {[%emt 0:08:53]} Rac8 {[%emt 0:09:20]} 17. Bf2 {[%emt 0:04:31]} Bd6 {[%emt 0:08:39]} 18. Nb1 {[%emt 0:07:59]} dxe4 {[%emt 0:02:35]} 19. fxe4 {[%emt 0:00:20]} Nc6 {[%emt 0:00:28]} 20. c3 {[%emt 0:05:39]} Ne5 {[%emt 0:01:28]} 21. Bd4 {[%emt 0:00:55]} Rd7 {[%emt 0:11:07]} 22. Nd2 {[%emt 0:04:18]} Rcd8 {[%emt 0:00:57]} 23. Rde1 {[%emt 0:03:00]} Bc5 {[%emt 0:09:10]} 24. Rxf6 {[%emt 0:00:46]} Bxd4 {[%emt 0:12:14]} 25. Rxf7 {[%emt 0:02:49]} Nxf7 {[%emt 0:01:33]} 26. cxd4 {[%emt 0:00:13]} Rxd4 {[%emt 0:01:49]} 27. Nf3 {[%emt 0:00:08]} R4d6 {[%emt 0:02:31]} 28. Bc4 {[%emt 0:00:46]} Qc5 {[%emt 0:01:07]} 29. Nf5 {[%emt 0:04:50]} Rc6 {[%emt 0:06:34]} 30. Ba2 {[%emt 0:04:45]} Kh8 {[%emt 0:00:45]} 31. Ne3 {[%emt 0:04:00]} b5 {[%emt 0:02:06]} 32. axb5 {[%emt 0:02:56]} axb5 {[%emt 0:00:07]} 33. e5 {[%emt 0:00:08]} Ra6 {[%emt 0:01:24]} 34. Bb1 {[%emt 0:00:04]} Bxf3 {[%emt 0:03:41]} 35. Qxf3 {[%emt 0:00:45]} Qe7 {[%emt 0:00:46]} 36. Qh5 {[%emt 0:01:09]} Nh6 {[%emt 0:00:17]} 37. Ng4 {[%emt 0:00:55]} Qb4 {[%emt 0:00:32]} 38. Qh4 {[%emt 0:00:04]} Rf8 {[%emt 0:00:38]} 39. h3 {[%emt 0:01:06]} Nf5 {[%emt 0:00:38]} 40. Qf2 {[%emt 0:00:22]} Qd4 {[%emt 0:00:39]} 41. Qc2 {[%emt 0:33:37]} Raa8 {[%emt 0:06:41]} 42. Ne3 {[%emt 0:00:00]} Qh4 {[%emt 0:01:15]} 43. Qc3 {[%emt 0:00:00]} Nxe3 {[%emt 0:02:12]} 44. Qxe3 {[%emt 0:00:00]} Rf7 {[%emt 0:01:48]} 45. Rd1 {[%emt 0:00:00]} Raf8 {[%emt 0:01:32]} 46. Qd3 {[%emt 0:00:00]} g6 {[%emt 0:00:32]} 47. Ba2 {[%emt 0:00:00]} Qh5 {[%emt 0:01:49]} 48. Re1 {[%emt 0:00:00]} Rf3 {[%emt 0:03:33]} 49. Qe2 {[%emt 0:00:00]} Rf1+ {[%emt 0:05:21]} 50. Kh2 {[%emt 0:00:00]} Qxe2 {[%emt 0:02:26]} 51. Rxe2 {[%emt 0:00:00]} R8f2 {[%emt 0:01:10]} 52. Re3 {[%emt 0:00:00]} Rxb2 {[%emt 0:00:21]} 53. Bxe6 {[%emt 0:00:00]} Rff2 {[%emt 0:00:19]} 54. Bd5 {[%emt 0:00:00]} Rfe2 {[%emt 0:01:01]} 55. Ra3 {[%emt 0:00:00]} Rxe5 {[%emt 0:00:18]} 56. Ra8+ {[%emt 0:00:00]} Kg7 {[%emt 0:00:11]} 57. Ra7+ {[%emt 0:00:00]} Kf6 {[%emt 0:01:41]} 58. Bf3 {[%emt 0:00:00]} Re7 {[%emt 0:00:17]} 59. Ra6+ {[%emt 0:00:00]} Ke5 {[%emt 0:00:11]} 60. Kg3 {[%emt 0:00:00]} b4 {[%emt 0:01:19]} 61. Ra5+ {[%emt 0:00:00]} Kd4 {[%emt 0:00:45]} 62. Rb5 {[%emt 0:00:00]} b3 {[%emt 0:01:02]} 63. Rd5+ {[%emt 0:00:00]} Kc4 {[%emt 0:00:45]} 64. Rd1 {[%emt 0:00:00]} Rc2 {[%emt 0:00:30]} 65. Bd5+ {[%emt 0:00:00]} Kc3 {[%emt 0:00:14]} 0-1

[Event "Int SVK-ch Open 2020"]
[Site "Drienica"]
[Date "2020.08.13"]
[Round "7.5"]
[White "Antal, Jakub"]
[Black "Furman, Slavomir"]
[Result "1/2-1/2"]
[ECO "A01"]
[WhiteElo "1939"]
[BlackElo "1754"]
[Annotator "ChessBase"]
[PlyCount "26"]
[EventDate "2020.08.07"]
[EventType "swiss"]
[EventCountry "SVK"]
[SourceTitle "playchess.com"]
[Source "ChessBase"]
[SourceQuality "1"]
[TimeControl "40/5400+30:1800+30"]

1. b3 {[%emt 0:00:00]} d5 {[%emt 0:00:00]} 2. Bb2 {[%emt 0:00:04]} Bf5 {[%emt 0:00:28]} 3. Nf3 {[%emt 0:01:54]} e6 {[%emt 0:00:36]} 4. d3 {[%emt 0:03:50]} h6 {[%emt 0:01:31]} 5. g3 {[%emt 0:04:44]} Nf6 {[%emt 0:00:40]} 6. Bg2 {[%emt 0:01:23]} Be7 {[%emt 0:00:31]} 7. O-O {[%emt 0:00:34]} O-O {[%emt 0:00:10]} 8. c4 {[%emt 0:03:20]} c6 {[%emt 0:00:38]} 9. Qd2 {[%emt 0:02:54]} a5 {[%emt 0:03:24]} 10. a3 {[%emt 0:05:19]} Re8 {[%emt 0:16:26]} 11. Nc3 {[%emt 0:13:15]} Nbd7 {[%emt 0:04:55]} 12. Rfe1 {[%emt 0:13:46]} Nc5 {[%emt 0:06:06]} 13. Qc2 {[%emt 0:16:55]} Qb6 1/2-1/2

[Event "Int SVK-ch Open 2020"]
[Site "Drienica"]
[Date "2020.08.15"]
[Round "7.6"]
[White "Juhar, Roman"]
[Black "Macko, Michal"]
[Result "1-0"]
[ECO "A03"]
[WhiteElo "2225"]
[BlackElo "2148"]
[Annotator "ChessBase"]
[PlyCount "99"]
[EventDate "2020.08.07"]
[EventType "swiss"]
[EventCountry "SVK"]
[TimeControl "40/5400+30:1800+30"]

1. f4 {[%emt 0:00:00]} g6 {[%emt 0:00:00]} 2. Nf3 {[%emt 0:00:02]} d5 {[%emt 0:00:00]} 3. e3 {[%emt 0:00:18]} Bg7 {[%emt 0:00:11]} 4. c4 {[%emt 0:00:46]} c6 {[%emt 0:01:59]} 5. cxd5 {[%emt 0:01:28]} cxd5 {[%emt 0:00:07]} 6. d4 {[%emt 0:01:10]} Nf6 {[%emt 0:00:31]} 7. Bd3 {[%emt 0:02:46]} O-O {[%emt 0:00:34]} 8. O-O {[%emt 0:00:19]} Qb6 {[%emt 0:01:45]} 9. Nc3 {[%emt 0:00:59]} Bd7 {[%emt 0:01:30]} 10. Ne5 {[%emt 0:00:39]} Bf5 {[%emt 0:05:32]} 11. g4 {[%emt 0:02:52]} Bxd3 {[%emt 0:00:30]} 12. Qxd3 {[%emt 0:00:08]} Rd8 {[%emt 0:00:20]} 13. Na4 {[%emt 0:02:27]} Qa6 {[%emt 0:01:47]} 14. Qa3 {[%emt 0:04:30]} Qd6 {[%emt 0:05:22]} 15. Bd2 {[%emt 0:10:45]} Qxa3 {[%emt 0:02:48]} 16. bxa3 {[%emt 0:02:00]} Nbd7 {[%emt 0:05:38]} 17. Rac1 {[%emt 0:06:58]} Ne8 {[%emt 0:04:23]} 18. Bb4 {[%emt 0:03:11]} Bf8 {[%emt 0:00:52]} 19. Rf2 {[%emt 0:00:48]} Ndf6 {[%emt 0:02:33]} 20. Rfc2 {[%emt 0:00:36]} Ne4 {[%emt 0:00:42]} 21. Nc5 {[%emt 0:01:07]} Nxc5 {[%emt 0:00:48]} 22. Bxc5 {[%emt 0:01:22]} e6 {[%emt 0:02:01]} 23. g5 {[%emt 0:02:23]} Bd6 {[%emt 0:00:25]} 24. Ng4 {[%emt 0:03:01]} Kg7 {[%emt 0:00:42]} 25. Kf2 {[%emt 0:10:38]} Rd7 {[%emt 0:06:35]} 26. Ke2 {[%emt 0:01:35]} Rc8 {[%emt 0:00:38]} 27. Bxa7 {[%emt 0:01:36]} Rdc7 {[%emt 0:00:34]} 28. Rxc7 {[%emt 0:00:47]} Rxc7 {[%emt 0:00:05]} 29. Rxc7 {[%emt 0:00:13]} Bxc7 {[%emt 0:01:03]} 30. Bc5 {[%emt 0:00:13]} f5 {[%emt 0:01:35]} 31. Nf2 {[%emt 0:01:15]} h6 {[%emt 0:01:33]} 32. h4 {[%emt 0:01:08]} hxg5 {[%emt 0:00:03]} 33. hxg5 {[%emt 0:00:06]} Kf7 {[%emt 0:00:03]} 34. a4 {[%emt 0:00:20]} Ng7 {[%emt 0:00:07]} 35. Nd3 {[%emt 0:01:08]} Nh5 {[%emt 0:01:26]} 36. Bb4 {[%emt 0:00:55]} Ng3+ {[%emt 0:00:48]} 37. Kf3 {[%emt 0:03:27]} Ne4 {[%emt 0:00:28]} 38. a5 {[%emt 0:04:34]} Ke8 {[%emt 0:00:07]} 39. Bc5 {[%emt 0:01:20]} Kd7 {[%emt 0:00:34]} 40. a4 {[%emt 0:06:25]} Nc3 {[%emt 0:00:38]} 41. Bb4 {[%emt 0:32:38]} Ne4 {[%emt 0:34:44]} 42. Ne1 {[%emt 0:01:27]} Bd8 {[%emt 0:00:53]} 43. Ke2 {[%emt 0:01:33]} Bc7 {[%emt 0:01:43]} 44. Kd3 {[%emt 0:01:41]} Bd8 {[%emt 0:00:15]} 45. Nf3 {[%emt 0:00:09]} Bc7 {[%emt 0:01:52]} 46. Nh4 {[%emt 0:02:00]} Nf2+ {[%emt 0:00:56]} 47. Ke2 {[%emt 0:00:26]} Ng4 {[%emt 0:00:06]} 48. Nxg6 {[%emt 0:00:18]} Ke8 {[%emt 0:00:23]} 49. Nf8 {[%emt 0:00:50]} Kf7 {[%emt 0:00:10]} 50. Nd7 {[%emt 0:01:38]} 1-0

[Event "Int SVK-ch Open 2020"]
[Site "Drienica"]
[Date "2020.08.13"]
[Round "7.6"]
[White "Paluska, Karol"]
[Black "Mandak, Miroslav"]
[Result "1/2-1/2"]
[ECO "A39"]
[WhiteElo "1873"]
[BlackElo "1927"]
[Annotator "ChessBase"]
[PlyCount "103"]
[EventDate "2020.08.07"]
[EventType "swiss"]
[EventCountry "SVK"]
[SourceTitle "playchess.com"]
[Source "ChessBase"]
[SourceQuality "1"]
[TimeControl "40/5400+30:1800+30"]

1. Nf3 {[%emt 0:00:00]} c5 {[%emt 0:00:08]} 2. c4 {[%emt 0:00:00]} Nc6 {[%emt 0:01:05]} 3. Nc3 {[%emt 0:00:00]} g6 {[%emt 0:01:35]} 4. g3 {[%emt 0:00:27]} Bg7 {[%emt 0:00:33]} 5. Bg2 {[%emt 0:00:05]} Nf6 {[%emt 0:03:38]} 6. O-O {[%emt 0:00:27]} O-O {[%emt 0:00:45]} 7. d4 {[%emt 0:02:55]} cxd4 {[%emt 0:00:43]} 8. Nxd4 {[%emt 0:00:05]} Nxd4 {[%emt 0:04:53]} 9. Qxd4 {[%emt 0:00:06]} d6 {[%emt 0:02:31]} 10. b3 {[%emt 0:03:12]} Bf5 {[%emt 0:10:48]} 11. Bb2 {[%emt 0:02:51]} Ne4 {[%emt 0:06:36]} 12. Qe3 {[%emt 0:00:26]} Nxc3 {[%emt 0:00:58]} 13. Bxc3 {[%emt 0:00:09]} Bxc3 {[%emt 0:01:36]} 14. Qxc3 {[%emt 0:00:05]} Qc7 {[%emt 0:00:32]} 15. Rac1 {[%emt 0:02:26]} Rac8 {[%emt 0:00:50]} 16. Qe3 {[%emt 0:17:03]} b6 {[%emt 0:04:20]} 17. Qh6 {[%emt 0:01:08]} Qc5 {[%emt 0:03:21]} 18. Rfd1 {[%emt 0:02:21]} Qe5 {[%emt 0:01:48]} 19. Bf3 {[%emt 0:20:59]} Rc7 {[%emt 0:06:18]} 20. Kg2 {[%emt 0:07:16]} Rfc8 {[%emt 0:02:57]} 21. h4 {[%emt 0:00:58]} Be4 {[%emt 0:04:56]} 22. Rh1 {[%emt 0:03:38]} Rc5 {[%emt 0:04:52]} 23. Rh2 {[%emt 0:02:12]} d5 {[%emt 0:03:04]} 24. h5 {[%emt 0:04:03]} g5 {[%emt 0:01:10]} 25. Bxe4 {[%emt 0:01:51]} dxe4 {[%emt 0:03:27]} 26. Rd1 {[%emt 0:00:38]} R5c6 {[%emt 0:01:05]} 27. Rd8+ {[%emt 0:00:53]} Rxd8 {[%emt 0:00:27]} 28. Qxc6 {[%emt 0:00:06]} f5 {[%emt 0:06:49]} 29. Rh1 {[%emt 0:05:56]} Qd6 {[%emt 0:11:51]} 30. Qb7 {[%emt 0:08:04]} a5 {[%emt 0:02:03]} 31. h6 {[%emt 0:01:00]} Kf7 {[%emt 0:01:28]} 32. g4 {[%emt 0:04:00]} Rb8 {[%emt 0:00:32]} 33. Qd5+ {[%emt 0:03:20]} Qxd5 {[%emt 0:00:38]} 34. cxd5 {[%emt 0:00:04]} Rc8 {[%emt 0:01:18]} 35. Rd1 {[%emt 0:00:29]} f4 {[%emt 0:01:43]} 36. Rd4 {[%emt 0:01:54]} Rd8 {[%emt 0:01:21]} 37. Rxe4 {[%emt 0:02:19]} Rxd5 {[%emt 0:00:15]} 38. e3 {[%emt 0:01:15]} fxe3 {[%emt 0:01:55]} 39. Rxe3 {[%emt 0:00:54]} Rd6 {[%emt 0:01:09]} 40. Rf3+ {[%emt 0:03:16]} Rf6 {[%emt 0:01:32]} 41. Rh3 {[%emt 0:30:09]} Kg6 {[%emt 0:30:22]} 42. Re3 {[%emt 0:00:28]} Kf7 {[%emt 0:00:30]} 43. Rh3 {[%emt 0:00:04]} Rf4 {[%emt 0:00:00]} 44. Rf3 {[%emt 0:00:00]} Rf6 {[%emt 0:00:00]} 45. Rh3 {[%emt 0:00:00]} Rd6 {[%emt 0:00:00]} 46. Rf3+ {[%emt 0:00:00]} Kg6 {[%emt 0:00:00]} 47. Rf5 {[%emt 0:00:00]} Kxh6 {[%emt 0:00:00]} 48. Rb5 {[%emt 0:00:00]} Kg6 {[%emt 0:00:00]} 49. Kg3 {[%emt 0:00:00]} Rf6 {[%emt 0:00:00]} 50. Re5 {[%emt 0:00:00]} Rd6 {[%emt 0:00:00]} 51. Rxe7 {[%emt 0:00:00]} h6 {[%emt 0:00:00]} 52. Re3 {[%emt 0:00:00]} 1/2-1/2

[Event "Int SVK-ch Open 2020"]
[Site "Drienica"]
[Date "2020.08.13"]
[Round "7.7"]
[White "Bombek, Peter"]
[Black "Garancovsky, Pavol"]
[Result "1/2-1/2"]
[ECO "A49"]
[WhiteElo "2181"]
[BlackElo "2027"]
[Annotator "RC"]
[PlyCount "26"]
[EventDate "2020.08.07"]
[EventType "swiss"]
[EventCountry "SVK"]
[SourceTitle "playchess.com"]
[Source "ChessBase"]
[SourceQuality "1"]
[TimeControl "40/5400+30:1800+30"]

1. d4 {[%emt 0:00:00]} g6 {[%emt 0:01:46]} 2. Nf3 {[%emt 0:00:00]} Bg7 {[%emt 0:00:21]} 3. g3 {[%emt 0:00:00]} Nf6 {[%emt 0:00:37]} 4. Bg2 {[%emt 0:00:11]} O-O {[%emt 0:00:44]} 5. O-O {[%emt 0:00:03]} d6 {[%emt 0:00:46]} 6. a4 {[%emt 0:00:10]} Bg4 {[%emt 0:07:35]} 7. b3 {[%emt 0:02:34]} e5 {[%emt 0:04:01]} 8. dxe5 {[%emt 0:03:37]} Nfd7 {[%emt 0:02:14]} 9. Bb2 {[%emt 0:06:48]} dxe5 {[%emt 0:02:13]} 10. Na3 {[%emt 0:01:40]} Nc6 {[%emt 0:05:38]} 11. h3 {[%emt 0:07:47]} Be6 {[%emt 0:09:34]} 12. Qc1 {[%emt 0:02:39]} e4 {[%emt 0:17:23]} 13. Nh2 {[%emt 0:18:19]} Bxb2 {[%emt 0:01:46]} 1/2-1/2